bitfinex/quotes_SOLUSD_20241209
["timestamp","ask_amount","ask_price","bid_price","bid_amount"]
[1733783280630,20.0,215.41,215.34,36.7618268]
[1733783280827,0.87054194,215.45,215.39,36.7618268]
[1733783281029,20.8702539,215.51,215.43,36.7618268]
[1733783281227,36.7618268,215.58,215.47,36.7618268]
[1733783281436,37.63182168,215.57,215.4,18.582343]
[1733783281622,36.7618268,215.55,215.42,36.7618268]
[1733783281823,36.7618268,215.45,215.21,12.0177]
[1733783282033,0.87058386,215.44,215.35,36.7618268]
[1733783282329,0.87046554,215.46,215.35,36.7618268]
[1733783282534,0.12549,215.43,215.35,36.7618268]
[1733783282721,23.776884,215.42,215.33,36.7618268]
[1733783282925,0.12549,215.38,215.33,36.7618268]
[1733783283250,0.12549,215.38,215.23,319.9834]
[1733783283251,0.12549,215.36,215.29,36.7618268]
[1733783283585,20.0,215.39,215.33,36.7618268]
[1733783283717,0.8705304,215.38,215.33,36.7618268]
[1733783284041,20.0,215.36,215.29,18.592112]
[1733783284222,0.87055718,215.48,215.26,10.0]
[1733783284417,0.87034997,215.57,215.46,36.7618268]
[1733783284618,0.86985392,215.65,215.54,36.7618268]
[1733783284835,1.1588,215.73,215.51,10.0]
[1733783285010,0.86926451,215.84,215.56,23.776884]
[1733783285210,2.02746451,215.84,215.58,23.776884]
[1733783285438,0.86900139,215.76,215.52,20.0]
[1733783285615,0.86927898,215.84,215.56,10.0]
[1733783285822,36.7618268,215.84,215.73,36.7618268]
[1733783286013,0.86885591,215.83,215.73,36.7618268]
[1733783286213,37.9200268,215.86,215.73,36.7618268]
[1733783286416,37.63060849,215.92,215.75,36.7618268]
[1733783286728,0.86858448,215.99,215.78,10.0]
[1733783286929,0.86858448,215.99,215.72,18.556181]
[1733783286930,37.62995474,215.98,215.86,36.7618268]
[1733783287133,37.68202308,216.03,215.8,10.0]
[1733783287325,1.58259305,216.14,215.89,10.0]
[1733783287528,37.52818675,216.14,215.91,10.0]
[1733783287716,10.0,216.12,215.76,23.776884]
[1733783288052,0.7145326,216.14,215.96,10.12549]
[1733783288340,0.7145326,216.14,215.94,23.776884]
[1733783288647,0.7145326,216.14,216.03,10.0]
[1733783288945,0.7145326,216.14,215.94,41.760284]
[1733783289121,0.7145326,216.14,216.1,36.81365415]
[1733783289721,37.52818675,216.14,216.02,36.81365415]
[1733783289933,0.7145326,216.14,216.1,36.81365415]
[1733783290252,0.7145326,216.14,215.94,17.9834]
[1733783290253,0.7145326,216.14,216.08,36.81365415]
[1733783290819,0.7145326,216.14,216.06,36.81365415]
[1733783291020,0.7145326,216.14,216.11,36.81365415]
[1733783291221,0.12549,216.11,215.98,36.81365415]
[1733783291422,0.9934382,216.11,215.8,7.9834]
[1733783291635,10.8679482,216.11,215.8,7.9834]
[1733783291846,0.12549,216.05,215.66,22.0177]
[1733783292028,10.0,215.89,215.64,7.9834]
[1733783292232,0.12549,215.81,215.53,12.0177]
[1733783292544,36.81365415,215.69,215.65,10.0]
[1733783292727,20.0,215.7,215.62,36.81365415]
[1733783292939,20.86926895,215.74,215.67,36.81365415]
[1733783293125,20.86926895,215.74,215.69,36.81365415]
[1733783293126,20.0,215.74,215.69,36.81365415]
[1733783293549,20.0,215.77,215.68,36.89272274]
[1733783293849,0.86920883,215.76,215.68,36.89272274]
[1733783294029,0.12549,215.76,215.66,36.89272274]
[1733783294231,20.0,215.73,215.64,36.89272274]
[1733783294438,20.0,215.68,215.6,36.89272274]
[1733783294637,0.12549,215.66,215.57,36.89272274]
[1733783294823,36.89272274,215.73,215.62,36.89272274]
[1733783295026,0.86929133,215.72,215.58,18.565251]
[1733783295236,23.776884,215.67,215.58,18.565251]
[1733783295434,23.776884,215.67,215.57,36.89272274]
[1733783295435,23.776884,215.63,215.48,7.9834]
[1733783295734,20.0,215.64,215.49,18.57422]
[1733783295735,0.86978371,215.62,215.49,18.57422]
[1733783295932,20.0,215.7,215.5,0.12549]
[1733783296144,0.86939323,215.69,215.5,312.0]
[1733783296341,36.89272274,215.78,215.66,36.89272274]
[1733783296528,0.86920514,215.77,215.66,36.89272274]
[1733783296723,0.86920514,215.77,215.68,36.89272274]
[1733783296931,0.86920514,215.77,215.66,36.89272274]
[1733783297123,0.12549,215.71,215.6,36.89272274]
[1733783297328,0.12549,215.71,215.49,55.46694274]
[1733783297329,0.12549,215.69,215.56,36.89272274]
[1733783297552,36.89272274,215.75,215.63,36.89272274]
[1733783297731,0.86923285,215.74,215.63,36.89272274]
[1733783297927,0.86935722,215.81,215.61,0.12549]
[1733783298235,1.158,215.88,215.76,36.89272274]
[1733783298582,1.1575,215.98,215.72,23.776884]
[1733783298737,0.86853754,215.97,215.72,23.776884]
[1733783299055,0.86853754,215.97,215.73,0.12549]
[1733783299349,0.86853754,215.97,215.76,0.12549]
[1733783299558,36.89272274,216.0,215.88,36.89272274]
[1733783299857,0.86816795,215.99,215.9,36.89272274]
[1733783300030,36.89272274,216.05,215.93,36.89272274]
[1733783300227,36.89272274,216.03,215.91,36.89272274]
[1733783300432,0.86826428,216.02,215.91,36.89272274]
[1733783300758,0.86826428,216.02,215.82,36.89272274]
[1733783300759,36.89272274,216.07,215.95,36.89272274]
[1733783300934,0.86795477,216.06,215.95,36.89272274]
[1733783301250,36.89272274,216.05,215.93,36.89272274]
[1733783301564,36.89272274,216.03,215.91,36.89272274]
[1733783301854,0.86824963,216.02,215.93,36.89272274]
[1733783302063,0.86811956,216.04,215.95,36.89272274]
[1733783302232,38.04942274,216.13,216.01,36.89272274]
[1733783302430,0.7145326,216.14,216.03,36.89272274]
[1733783302630,0.7145326,216.14,216.1,36.89272274]
[1733783303157,0.7145326,216.14,216.12,36.89272274]
[1733783304667,0.7145326,216.14,216.13,36.89272274]
[1733783305156,0.8669605,216.33,216.14,23.902374]
[1733783305357,0.8669605,216.33,216.23,36.89272274]
[1733783305560,20.8669605,216.33,216.23,36.89272274]
[1733783305730,0.8669605,216.33,216.23,36.89272274]
[1733783305931,0.8669605,216.33,216.25,36.89272274]
[1733783306166,0.86688175,216.35,216.25,36.89272274]
[1733783306457,0.86688175,216.35,216.15,36.89272274]
[1733783306458,0.86688175,216.35,216.15,46.89272274]
[1733783306641,1.58123244,216.42,216.32,36.89272274]
[1733783306970,39.62915518,216.42,216.3,36.89272274]
[1733783307456,39.62915518,216.42,216.32,36.89272274]
[1733783307748,36.89272274,216.4,216.3,36.89272274]
[1733783307957,0.86661485,216.39,216.3,36.89272274]
[1733783308366,37.01821274,216.37,216.26,36.89272274]
[1733783308562,0.86682265,216.36,216.26,36.89272274]
[1733783308753,0.86682265,216.36,216.15,36.89272274]
[1733783308754,36.89272274,216.33,216.22,36.89272274]
[1733783308941,20.0,216.3,216.22,36.89272274]
[1733783309346,20.0,216.34,216.26,36.89272274]
[1733783309544,0.86684265,216.33,216.26,36.89272274]
[1733783309756,0.86684563,216.36,216.28,36.89272274]
[1733783309974,0.86674154,216.38,216.28,36.89272274]
[1733783310447,0.86674154,216.38,216.15,36.89272274]
[1733783310448,0.7145326,216.42,216.32,36.89272274]
[1733783310648,1.58113763,216.42,216.32,36.89272274]
[1733783311374,0.7145326,216.42,216.38,36.89272274]
[1733783311546,0.7145326,216.42,216.36,36.89272274]
[1733783311746,0.7145326,216.42,216.26,36.89272274]
[1733783311747,0.7145326,216.42,216.38,36.89272274]
[1733783312468,0.7145326,216.42,216.36,36.89272274]
[1733783312772,0.7145326,216.42,216.24,22.6034]
[1733783312773,0.7145326,216.42,216.3,36.89272274]
[1733783312959,0.86661861,216.41,216.3,36.89272274]
[1733783313165,0.86661861,216.41,216.32,36.89272274]
[1733783313552,0.86661861,216.41,216.35,36.89272274]
[1733783313757,0.86661861,216.41,216.33,36.89272274]
[1733783313942,20.0,216.4,216.31,36.89272274]
[1733783314146,0.86663997,216.39,216.31,36.89272274]
[1733783314343,20.0,216.36,216.09,22.6034]
[1733783314560,0.86682453,216.35,216.25,36.89272274]
[1733783314876,23.776884,216.26,216.15,36.89272274]
[1733783315085,0.86722688,216.26,216.17,36.89272274]
[1733783315450,0.86714151,216.28,216.21,36.89272274]
[1733783315664,36.89272274,216.33,216.21,36.89272274]
[1733783315665,20.86701961,216.3,216.21,36.89272274]
[1733783315972,0.86701961,216.3,216.19,36.89272274]
[1733783316159,20.86701961,216.3,216.19,36.89272274]
[1733783316560,0.86701961,216.3,216.19,36.89272274]
[1733783317046,23.776884,216.29,216.19,36.89272274]
[1733783317251,0.86712983,216.28,216.19,36.89272274]
[1733783317552,12.311,216.36,216.09,12.6034]
[1733783317553,37.3095,216.5,216.26,73.78544548]
[1733783317753,1.155,216.45,216.34,36.89272274]
[1733783317943,0.86664721,216.41,216.34,36.89272274]
[1733783318584,0.86655122,216.44,216.36,36.89272274]
[1733783318871,0.866511,216.47,216.4,36.89272274]
[1733783319350,0.86625021,216.49,216.4,36.89272274]
[1733783319551,25.0,216.5,216.4,36.89272274]
[1733783320275,25.0,216.5,216.44,43.776884]
[1733783320448,0.8657667,216.77,216.52,23.776884]
[1733783320651,0.8657667,216.77,216.67,36.89272274]
[1733783321072,36.89272274,216.7,216.59,36.89272274]
[1733783321278,0.86547066,216.68,216.61,36.89272274]
[1733783321579,0.86546069,216.71,216.61,36.89272274]
[1733783321970,0.86546069,216.71,216.65,36.89272274]
[1733783322157,36.89272274,216.75,216.65,36.89272274]
[1733783322360,36.89272274,216.75,216.63,36.89272274]
[1733783322361,0.86522974,216.74,216.63,36.89272274]
[1733783322675,36.89272274,216.73,216.63,36.89272274]
[1733783322879,0.86542176,216.72,216.63,36.89272274]
[1733783323260,0.86527477,216.74,216.66,36.89272274]
[1733783323658,0.86511708,216.81,216.68,36.89272274]
[1733783323855,37.75783982,216.81,216.68,36.89272274]
[1733783324162,0.86511708,216.81,216.68,348.89272274]
[1733783324668,0.86505438,216.8,216.68,348.89272274]
[1733783324854,0.86494247,216.84,216.68,348.89272274]
[1733783325257,0.86494632,216.86,216.73,23.776884]
[1733783325481,0.86482065,216.95,216.85,36.89272274]
[1733783326360,0.86482065,216.95,216.87,36.89272274]
[1733783326759,0.86482065,216.95,216.85,36.89272274]
[1733783326956,0.86482065,216.95,216.87,36.89272274]
[1733783327165,0.7145326,216.96,216.81,36.89272274]
[1733783327166,1.57887379,216.96,216.85,36.89272274]
[1733783327374,1.57887379,216.96,216.87,36.89272274]
[1733783327574,0.7145326,216.96,216.89,36.89272274]
[1733783327786,0.7145326,216.96,216.91,36.89272274]
[1733783328084,0.7145326,216.96,216.93,36.89272274]
[1733783328251,0.7145326,216.96,216.95,36.89272274]
[1733783328457,0.7145326,216.96,216.91,36.89272274]
[1733783328665,0.7145326,216.96,216.93,36.89272274]
[1733783329281,0.7145326,216.96,216.91,36.89272274]
[1733783329878,0.7145326,216.96,216.95,36.89272274]
[1733783330284,0.1,217.0,216.95,36.89272274]
[1733783330584,0.1,217.0,216.97,36.89272274]
[1733783330789,0.1,217.0,216.92,36.89272274]
[1733783331164,0.1,217.0,216.9,36.89272274]
[1733783331488,0.96428038,217.0,216.9,36.89272274]
[1733783332069,20.96430642,217.0,216.91,36.89272274]
[1733783332296,20.0,216.98,216.87,36.89272274]
[1733783332458,37.75713148,216.97,216.86,36.89272274]
[1733783332991,20.0,216.96,216.88,36.89272274]
[1733783333370,0.86430377,216.95,216.88,36.89272274]
[1733783333568,0.86436149,216.98,216.88,36.89272274]
[1733783333884,0.86436149,216.98,216.81,36.89272274]
[1733783333885,20.0,216.96,216.86,36.49247129]
[1733783334066,0.86439314,216.95,216.88,36.49247129]
[1733783334269,20.0,216.95,216.86,36.49247129]
[1733783334475,0.86441742,216.97,216.86,36.49247129]
[1733783334681,0.86438433,216.96,216.86,36.49247129]
[1733783335159,37.35685562,216.96,216.84,36.49247129]
[1733783335559,37.35685562,216.96,216.74,10.0]
[1733783335560,0.86438433,216.96,216.88,36.49247129]
[1733783335780,0.86433333,216.95,216.86,36.49247129]
[1733783336288,0.1,217.0,216.89,36.49247129]
[1733783336487,0.1,217.0,216.91,36.49247129]
[1733783336873,0.864174,216.99,216.89,36.49247129]
[1733783337075,0.1,217.0,216.89,36.49247129]
[1733783337288,0.1,217.0,216.91,36.49247129]
[1733783337792,0.1,217.0,216.94,36.49247129]
[1733783338091,0.1,217.0,216.96,36.49247129]
[1733783338397,0.1,217.0,216.94,36.49247129]
[1733783339201,0.1,217.0,216.9,36.49247129]
[1733783339491,36.49247129,216.99,216.87,36.49247129]
[1733783339690,0.86437666,216.98,216.87,36.49247129]
[1733783339895,20.0,216.92,216.81,36.49247129]
[1733783340096,0.86467906,216.92,216.83,36.49247129]
[1733783340270,0.86467906,216.92,216.9,36.49247129]
[1733783340480,0.1,217.0,216.9,36.49247129]
[1733783340676,0.96415432,217.0,216.9,36.49247129]
[1733783340880,36.49247129,216.99,216.87,36.49247129]
[1733783341092,2.01649157,216.98,216.87,36.49247129]
[1733783341305,0.86439157,216.98,216.88,36.49210459]
[1733783341678,20.86439157,216.98,216.86,36.49210459]
[1733783341992,36.49210459,216.95,216.82,36.49210459]
[1733783342191,36.49210459,216.93,216.82,36.49210459]
[1733783342389,0.86461125,216.92,216.73,28.463806]
[1733783342575,0.86461125,216.92,216.81,36.49210459]
[1733783342992,36.49210459,216.95,216.83,36.49210459]
[1733783343309,2.01691906,216.94,216.81,36.49210459]
[1733783343480,36.49210459,216.93,216.81,36.49210459]
[1733783343679,36.61759459,216.91,216.79,36.49210459]
[1733783343881,0.12549,216.86,216.73,36.49210459]
[1733783344086,20.0,216.82,216.73,36.49210459]
[1733783344379,0.86499482,216.85,216.8,36.49210459]
[1733783344610,36.49210459,216.88,216.76,36.49210459]
[1733783344904,0.12549,216.83,216.72,36.49210459]
[1733783345110,0.99064563,216.83,216.72,36.49210459]
[1733783345278,0.12549,216.81,216.7,36.49210459]
[1733783345602,36.61759459,216.79,216.66,36.49210459]
[1733783345771,36.61759459,216.77,216.64,36.49210459]
[1733783345976,36.61759459,216.75,216.64,36.49210459]
[1733783346178,36.61759459,216.75,216.57,12.8669]
[1733783346179,0.12549,216.72,216.62,36.49210459]
[1733783346401,0.99105048,216.72,216.62,36.49210459]
[1733783346880,20.0,216.7,216.6,36.49210459]
[1733783347081,0.12549,216.68,216.58,36.49210459]
[1733783347285,43.902374,216.66,216.55,36.49210459]
[1733783347499,36.49210459,216.61,216.49,36.49210459]
[1733783347792,36.49210459,216.61,216.34,8.0017]
[1733783347793,0.12549,216.56,216.45,36.49210459]
[1733783348004,0.12549,216.56,216.38,36.49210459]
[1733783348005,36.49210459,216.5,216.38,36.49210459]
[1733783348206,0.86645592,216.49,216.38,36.49210459]
[1733783348404,0.86645592,216.49,216.43,36.49210459]
[1733783348601,0.86625257,216.51,216.45,36.49210459]
[1733783348798,0.86625257,216.51,216.31,22.8669]
[1733783348799,0.86625257,216.51,216.43,36.49210459]
[1733783349021,0.86625257,216.51,216.41,36.49210459]
[1733783349211,0.12549,216.49,216.37,36.49210459]
[1733783349522,20.0,216.47,216.37,36.49210459]
[1733783349712,0.12549,216.45,216.35,36.49210459]
[1733783349891,36.49210459,216.42,216.29,36.49210459]
[1733783350093,0.86678143,216.41,216.31,36.49210459]
[1733783350315,0.86679037,216.45,216.4,36.49210459]
[1733783350520,0.86649279,216.44,216.28,0.7145326]
[1733783350704,36.49210459,216.36,216.28,0.7145326]
[1733783350908,0.86691199,216.35,216.28,0.7145326]
[1733783351208,36.61759459,216.34,216.28,0.7145326]
[1733783351417,0.86712243,216.33,216.28,0.7145326]
[1733783351613,36.49210459,216.43,216.31,36.49210459]
[1733783351792,0.86666747,216.42,216.31,36.49210459]
[1733783352607,36.49210459,216.41,216.29,36.49210459]
[1733783352820,0.86667867,216.4,216.31,36.49210459]
[1733783353499,1.86263585,216.51,216.35,36.49210459]
[1733783353500,0.86665968,216.42,216.35,36.49210459]
[1733783353733,36.49210459,216.48,216.35,36.49210459]
[1733783354020,36.49210459,216.46,216.35,36.49210459]
[1733783354322,0.86649079,216.45,216.35,36.49210459]
[1733783355196,0.86649079,216.45,216.37,36.49210459]
[1733783355399,0.86644296,216.47,216.43,36.49210459]
[1733783355592,36.49210459,216.58,216.45,36.49210459]
[1733783355792,0.86605141,216.57,216.48,36.49210459]
[1733783356229,0.86586118,216.64,216.48,36.49210459]
[1733783356394,1.1534,216.75,216.62,36.49210459]
[1733783356601,0.8653916,216.74,216.65,36.49210459]
[1733783357300,0.86527642,216.82,216.73,36.49210459]
[1733783357515,36.49210459,216.91,216.8,36.49210459]
[1733783357708,0.86469631,216.9,216.8,36.49210459]
[1733783357911,36.49210459,216.88,216.75,36.49210459]
[1733783358232,0.86476535,216.87,216.79,36.49210459]
[1733783358405,0.86465958,216.89,216.79,36.49210459]
[1733783359313,36.49210459,216.92,216.81,36.49210459]
[1733783359506,36.49210459,216.92,216.71,0.12549]
[1733783359507,36.49210459,216.9,216.79,36.49210459]
[1733783359706,36.49210459,216.88,216.77,36.49210459]
[1733783359902,36.49210459,216.86,216.75,36.49210459]
[1733783360122,0.86482791,216.85,216.75,36.49210459]
[1733783360523,0.86482791,216.85,216.77,36.49210459]
[1733783360705,36.49210459,216.9,216.77,36.49210459]
[1733783361020,36.49210459,216.88,216.77,36.49210459]
[1733783361223,0.86472639,216.87,216.75,36.49210459]
[1733783361520,36.49210459,216.84,216.73,36.49210459]
[1733783361720,0.86492804,216.83,216.73,36.49210459]
[1733783362095,0.86492804,216.83,216.71,36.49210459]
[1733783362295,36.49210459,216.75,216.61,19.9334]
[1733783362507,0.86534408,216.74,216.64,36.49210459]
[1733783362725,36.49210459,216.71,216.6,36.49210459]
[1733783362928,10.0,216.77,216.5,21.8513]
[1733783362929,20.0,216.68,216.58,36.49210459]
[1733783363123,20.0,216.66,216.58,36.49210459]
[1733783363428,0.86566018,216.68,216.6,36.49210459]
[1733783364103,0.86566018,216.68,216.58,36.49210459]
[1733783364430,36.49210459,216.59,216.49,36.49210459]
[1733783364606,36.49210459,216.57,216.45,36.49210459]
[1733783364806,0.86601588,216.56,216.45,36.49210459]
[1733783365426,36.49210459,216.61,216.49,36.49210459]
[1733783365726,0.86577551,216.6,216.49,36.49210459]
[1733783365924,36.49210459,216.64,216.53,36.49210459]
[1733783366144,0.8658678,216.61,216.49,36.49210459]
[1733783366724,0.8658678,216.61,216.51,36.49210459]
[1733783367426,36.49210459,216.62,216.51,36.49210459]
[1733783367619,0.86578691,216.61,216.51,36.49210459]
[1733783368320,0.86578691,216.61,216.49,36.49210459]
[1733783368632,36.49210459,216.6,216.49,36.49210459]
[1733783368827,0.86578715,216.59,216.49,36.49210459]
[1733783369129,36.49210459,216.58,216.45,36.49210459]
[1733783369433,0.86597353,216.57,216.46,36.49210459]
[1733783369605,36.49210459,216.56,216.44,36.49210459]
[1733783369809,0.86612864,216.55,216.44,36.49210459]
[1733783370123,36.49210459,216.58,216.46,36.49210459]
[1733783370345,0.8658971,216.57,216.46,36.49210459]
[1733783370637,36.49210459,216.48,216.37,11.8513]
[1733783370838,36.49210459,216.45,216.34,44.57420459]
[1733783371048,36.49210459,216.47,216.36,36.49210459]
[1733783371211,36.49210459,216.51,216.38,36.49210459]
[1733783371412,36.49210459,216.53,216.41,36.49210459]
[1733783371644,36.49210459,216.55,216.43,36.49210459]
[1733783371928,36.49210459,216.57,216.45,36.49210459]
[1733783372133,0.86592196,216.62,216.49,36.49210459]
[1733783372324,36.49210459,216.58,216.47,36.49210459]
[1733783372509,0.86589834,216.57,216.47,36.49210459]
[1733783372710,36.49210459,216.6,216.47,36.49210459]
[1733783372906,0.8658332,216.59,216.47,36.49210459]
[1733783373110,36.49210459,216.62,216.49,36.49210459]
[1733783373315,0.86570515,216.61,216.49,36.49210459]
[1733783373529,36.49210459,216.62,216.51,36.49210459]
[1733783373722,36.49210459,216.66,216.55,36.49210459]
[1733783374130,36.49210459,216.64,216.52,23.776884]
[1733783374333,36.49210459,216.62,216.51,36.49210459]
[1733783374516,0.86569954,216.61,216.51,36.49210459]
[1733783374718,36.49210459,216.54,216.38,10.0]
[1733783374909,36.49210459,216.52,216.41,36.49210459]
[1733783375110,0.86612775,216.51,216.41,36.49210459]
[1733783375337,36.49210459,216.5,216.39,36.49210459]
[1733783375530,46.49210459,216.59,216.34,8.0821]
[1733783375531,36.49210459,216.48,216.36,36.49210459]
[1733783375725,36.49210459,216.48,216.34,8.0821]
[1733783375726,36.49210459,216.5,216.38,36.49210459]
[1733783376135,37.35826963,216.55,216.43,36.49210459]
[1733783376336,1.1539,216.66,216.37,36.49210459]
[1733783376337,36.49210459,216.49,216.37,36.49210459]
[1733783376522,36.49210459,216.47,216.34,8.0821]
[1733783376834,36.49210459,216.47,216.28,10.7145326]
[1733783376835,36.49210459,216.45,216.32,36.49210459]
[1733783377041,20.0,216.43,216.28,0.7145326]
[1733783377241,36.49210459,216.39,216.28,37.20663719]
[1733783377419,36.49210459,216.41,216.28,37.20663719]
[1733783377626,0.86662346,216.4,216.3,36.49210459]
[1733783377846,0.86662346,216.4,216.28,37.20663719]
[1733783378017,0.86666148,216.47,216.35,36.49210459]
[1733783378219,36.49210459,216.46,216.35,36.49210459]
[1733783378423,36.49210459,216.48,216.37,36.49210459]
[1733783378622,0.86628991,216.47,216.37,36.49210459]
[1733783378824,36.49210459,216.48,216.37,36.49210459]
[1733783379024,0.86628823,216.58,216.44,36.49210459]
[1733783379228,37.35813615,216.57,216.46,36.49210459]
[1733783379424,36.49210459,216.59,216.48,36.49210459]
[1733783379625,36.49210459,216.61,216.5,36.49210459]
[1733783379947,37.3578663,216.65,216.54,36.49210459]
[1733783380125,36.49210459,216.65,216.54,36.49210459]
[1733783380321,36.49210459,216.67,216.56,36.49210459]
[1733783380622,36.49210459,216.76,216.64,36.49210459]
[1733783380822,36.49210459,216.74,216.64,36.49210459]
[1733783381044,0.86520952,216.73,216.64,36.49210459]
[1733783381344,36.49210459,216.68,216.6,36.49210459]
[1733783381546,36.49210459,216.7,216.6,36.49210459]
[1733783382441,0.86536086,216.78,216.69,36.49210459]
[1733783382742,36.49210459,216.85,216.73,36.49210459]
[1733783382956,36.49210459,216.87,216.75,36.49210459]
[1733783383135,36.49210459,216.91,216.79,36.49210459]
[1733783383449,0.86460554,216.9,216.79,36.49210459]
[1733783383744,0.1,217.0,216.81,36.49210459]
[1733783383745,36.49210459,216.93,216.81,36.49210459]
[1733783383930,0.86451158,216.92,216.83,36.49210459]
[1733783384134,36.49210459,216.93,216.81,36.49210459]
[1733783384317,0.86446115,216.92,216.83,36.49210459]
[1733783384522,36.49210459,216.99,216.87,36.49210459]
[1733783384747,0.86428199,216.98,216.89,36.49210459]
[1733783384959,36.49210459,216.99,216.87,36.49210459]
[1733783385221,36.49210459,216.99,216.89,36.49210459]
[1733783385428,0.1,217.0,216.89,36.49210459]
[1733783385647,0.96418662,217.0,216.89,36.49210459]
[1733783385829,0.1,217.0,216.89,36.49210459]
[1733783386021,0.96416597,217.0,216.89,36.49210459]
[1733783386523,36.49210459,216.99,216.88,20.0]
[1733783386733,36.49210459,216.97,216.85,36.49210459]
[1733783387043,0.1,217.0,216.83,36.49210459]
[1733783387044,36.49210459,216.95,216.83,36.49210459]
[1733783387421,36.49210459,216.89,216.77,36.49210459]
[1733783387824,0.1,217.0,216.88,36.49210459]
[1733783388023,0.1,217.0,216.93,36.49210459]
[1733783388227,0.1,217.0,216.95,36.49210459]
[1733783388626,0.1,217.0,216.97,36.49210459]
[1733783389356,0.1,217.0,216.99,36.49210459]
[1733783390236,0.1,217.0,216.94,10.0]
[1733783390423,0.1,217.0,216.99,36.49210459]
[1733783390622,0.1,217.0,216.93,12.8062]
[1733783390825,0.1,217.0,216.96,36.49210459]
[1733783391420,0.1,217.0,216.89,36.49210459]
[1733783391651,0.1,217.0,216.91,36.49210459]
[1733783391852,0.1,217.0,216.89,36.49210459]
[1733783392035,0.1,217.0,216.79,12.8062]
[1733783392349,0.1,217.0,216.99,10.0]
[1733783392553,0.3721374,217.08,217.0,10.0]
[1733783392751,0.3721374,217.08,217.07,10.0]
[1733783393058,0.3721374,217.08,217.04,334.8062]
[1733783393362,0.3721374,217.08,217.07,36.49210459]
[1733783393865,0.3721374,217.08,217.04,12.8062]
[1733783394229,0.3721374,217.08,217.05,36.49210459]
[1733783394441,0.3721374,217.08,217.0,36.49210459]
[1733783395223,0.3721374,217.08,216.98,36.49210459]
[1733783395429,37.35610558,217.07,216.96,36.49210459]
[1733783395644,37.35610558,217.07,216.91,36.49210459]
[1733783395645,36.49210459,217.03,216.91,36.49210459]
[1733783395824,36.49210459,216.99,216.88,36.49210459]
[1733783396028,36.49210459,216.97,216.86,36.49210459]
[1733783396254,0.86434189,216.96,216.88,36.49210459]
[1733783396432,36.49210459,216.95,216.85,18.455777]
[1733783396624,0.86431697,216.98,216.85,36.49210459]
[1733783396625,36.49210459,216.96,216.85,36.49210459]
[1733783396823,0.86453966,216.98,216.85,36.49210459]
[1733783396824,0.86434989,216.95,216.85,36.49210459]
[1733783397026,0.86446868,216.97,216.87,36.49210459]
[1733783397226,0.86446868,216.97,216.85,36.49210459]
[1733783397454,36.49210459,216.96,216.85,36.49210459]
[1733783397650,0.86443379,216.95,216.85,36.49210459]
[1733783398227,10.0,217.13,216.81,10.0]
[1733783398228,0.864421,217.02,216.94,36.49210459]
[1733783398434,36.49210459,217.07,216.96,36.49210459]
[1733783398757,0.86404638,217.06,216.96,36.49210459]
[1733783399155,0.86404638,217.06,216.94,36.49210459]
[1733783399156,36.49210459,217.05,216.94,36.49210459]
[1733783399457,0.86404922,217.04,216.94,36.49210459]
[1733783400245,36.49210459,217.05,216.86,18.450447]
[1733783400557,37.35620851,217.03,216.92,36.49210459]
[1733783400865,36.49210459,217.01,216.88,36.49210459]
[1733783401037,0.86420598,217.0,216.9,36.49210459]
[1733783401349,0.3721374,217.08,216.94,36.49210459]
[1733783401350,36.49210459,217.05,216.94,36.49210459]
[1733783401747,36.49210459,217.0,216.86,18.450447]
[1733783401953,36.49210459,216.98,216.87,36.49210459]
[1733783402133,1.1517,217.07,216.8,12.4611]
[1733783402134,0.86445984,216.97,216.85,36.49210459]
[1733783402335,36.49210459,216.94,216.81,54.94953359]
[1733783402556,36.49210459,216.94,216.8,12.4611]
[1733783402557,0.86463614,216.93,216.83,36.49210459]
[1733783402861,36.49210459,216.89,216.77,36.49210459]
[1733783403054,36.49210459,216.84,216.79,18.460602]
[1733783403252,0.86486448,216.83,216.72,36.49210459]
[1733783403557,0.86486448,216.83,216.64,12.4611]
[1733783403558,37.3570737,216.89,216.78,36.49210459]
[1733783403743,36.49210459,216.85,216.74,36.49210459]
[1733783403946,0.86488969,216.84,216.69,18.468758]
[1733783404268,0.86485604,216.91,216.7,10.0]
[1733783404461,23.776884,216.97,216.72,10.0]
[1733783404761,0.12549,216.95,216.71,0.12549]
[1733783404967,36.49210459,216.91,216.8,36.49210459]
[1733783405136,0.86462305,216.9,216.8,36.49210459]
[1733783405455,0.86462305,216.9,216.7,36.49210459]
[1733783405456,36.49210459,216.89,216.78,36.49210459]
[1733783405653,36.49210459,216.86,216.75,36.49210459]
[1733783405867,36.49210459,216.84,216.73,36.49210459]
[1733783406035,36.49210459,216.82,216.71,36.49210459]
[1733783406235,37.35723375,216.81,216.64,36.49210459]
[1733783406448,36.49210459,216.74,216.62,36.49210459]